Workbook

Sheet BExRepositorySheet (hidden)
A1: 7
C14: Filter

Sheet Table (hidden)
F1: Estado de Situacion Financiera Det A
H2: Autor | I2: ADVJYNOQUIO | K2: Actualidad de datos | L2: 12/05/2022 10:26:27
G5: Information
G6: Autor | H6: ADVJYNOQUIO | J6: Últ.actual.pantalla | K6: 29/04/2025 12:00:06
G7: Usuario actual | H7: GRPSMCABALLE | J7: Fe.clave | K7: 29/04/2025
G8: Modificado por | H8: ADVIVIEYRA | J8: Hora de modificación | K8: 07/05/2020 10:37:04
G9: InfoSitio | H9: ZVRL_MP02 | J9: Actualidad de datos | K9: 12/05/2022 10:26:27
G10: Nombre técnico query | H10: ZFI_VRL_MP02_Q008A | J10: Actualidad datos (fecha) | K10: 12/05/2022
G11: Descripción query | H11: Estado de Situacion Financiera Det A | J11: Actualidad datos (fecha) | K11: 10:26:27
C14: Filter | G14: Table
C15: Área funcional | H15: Saldo Actual (ORIGINAL) | I15: Saldo Anterior (ORIGINAL) | J15: Saldo Actual (NUEVO) | K15: Saldo Anterior (NUEVO) | L15: Saldo acumulado
C16: Centro de beneficio | G16: Activo | H16: 0 | I16: 0 | J16: 0 | K16: 0 | L16: 0
C17: Centro de coste | G17: Activo Circulante | H17: 0 | I17: 0 | J17: 0 | K17: 0 | L17: 0
C18: Cuenta de mayor | G18: a. Efectivo y Equivalentes | H18: 0 | I18: 0 | J18: 2487939016 | K18: 2697592194 | L18: 2551708066
C19: Ejercicio/Período | G19: a1) Efectivo | H19: 0 | I19: 0 | J19: 702555011.8 | K19: 654951531 | L19: 1021465011
C20: Ejercicio | G20: a2) Bancos/Tesorería | H20: 0 | I20: 0 | J20: 380344488.2 | K20: 53698553.21 | L20: -1035207516
C21: Estruct. | G21: a3) Bancos/Dependencias y Otros | H21: 0 | I21: 0
C22: InfoSitio | G22: a4) Inversiones Temporales (Hasta 3 meses) | H22: 0 | I22: 0 | J22: 71220659.87 | K22: 356184486 | L22: 1477833636
C23: Período contable | G23: a5) Fondos con Afectación Específica | H23: 0 | I23: 0 | J23: 1333789850 | K23: 1632728618 | L23: 1087587928
C24: Ratios | G24: a6) Depósitos de Fondos de Terceros en Garantía y/o | H24: 0 | I24: 0
G25: a7) Otros Efectivos y Equivalentes | H25: 0 | I25: 0 | J25: 29006 | K25: 29006 | L25: 29006
G26: b. Derechos a Recibir Efectivo o Equivalentes | H26: 0 | I26: 0 | J26: 2993813274 | K26: 1332014664 | L26: 4567093171
G27: b1) Inversiones Financieras de Corto Plazo | H27: 0 | I27: 0 | J27: 0 | K27: 0 | L27: 0
G28: b2) Cuentas por Cobrar a Corto Plazo | H28: 0 | I28: 0 | J28: 39501.97 | K28: 39501.97 | L28: 39501.97
G29: b3) Deudores Diversos por Cobrar a Corto Plazo | H29: 0 | I29: 0 | J29: 2234374845 | K29: 528200041.8 | L29: 3808772689
G30: b4) Ingresos por Recuperar a Corto Plazo | H30: 0 | I30: 0 | J30: 7313.43 | K30: 70695.61 | L30: 7217.53
G31: b5) Deudores por Anticipos de la Tesorería a Corto Plazo | H31: 0 | I31: 0 | J31: 47675365.65 | K31: 53103036.47 | L31: 56245261.51
G32: b6) Préstamos Otorgados a Corto Plazo | H32: 0 | I32: 0 | J32: 32489913.88 | K32: 28935986.23 | L32: 37990558.27
G33: b7) Otros Derechos a Recibir Efectivo o Equivalentes a C | H33: 0 | I33: 0 | J33: 679226334.9 | K33: 721665401.8 | L33: 664037942.9
G34: c. Derechos a Recibir Bienes o Servicios | H34: 0 | I34: 0 | J34: 296226142.9 | K34: 366264146.2 | L34: 848901439
G35: c1) Anticipo a Proveedores por Adquisición de Bienes y | H35: 0 | I35: 0
G36: c2) Anticipo a Proveedores por Adquisición de Bienes Inm | H36: 0 | I36: 0
G37: c3) Anticipo a Proveedores por Adquisición de Bienes Int | H37: 0 | I37: 0
G38: c4) Anticipo a Contratistas por Obras Públicas a Corto P | H38: 0 | I38: 0 | J38: 296226142.9 | K38: 366264146.2 | L38: 848901439
G39: c5) Otros Derechos a Recibir Bienes o Servicios a Corto | H39: 0 | I39: 0
G40: d. Inventarios | H40: 0 | I40: 0
G41: d1) Inventario de Mercancías para Venta | H41: 0 | I41: 0
G42: d2) Inventario de Mercancías Terminadas | H42: 0 | I42: 0
G43: d3) Inventario de Mercancías en Proceso de Elaboración | H43: 0 | I43: 0
G44: d4) Inventario de Materias Primas, Materiales y Suminist | H44: 0 | I44: 0
G45: d5) Bienes en Tránsito | H45: 0 | I45: 0
G46: e. Almacenes | H46: 0 | I46: 0 | J46: 486820.21 | K46: 486820.21 | L46: 486820.21
G47: f. Estimación por Pérdida o Deterioro de Activos Circ. | H47: 0 | I47: 0
G48: f1) Estimaciones para Cuentas Incobrables por Derechos a | H48: 0 | I48: 0
G49: f2) Estimación por Deterioro de Inventarios | H49: 0 | I49: 0
G50: g. Otros Activos Circulantes | H50: 0 | I50: 0 | J50: 0 | K50: 0 | L50: 0
G51: g1) Valores en Garantía | H51: 0 | I51: 0 | J51: 0 | K51: 0 | L51: 0
G52: g2) Bienes en Garantía (excluye depósitos de fondos) | H52: 0 | I52: 0
G53: g3) Bienes Derivados de Embargos, Decomisos, Aseguramien | H53: 0 | I53: 0 | K53: 0 | L53: 0
G54: g4) Adquisición con Fondos de Terceros | H54: 0 | I54: 0
G55: IA. Total de Activos Circulantes | H55: 0 | I55: 0 | J55: 5778465254 | K55: 4396357825 | L55: 7968189496
G56: Activo No Circulante | H56: 0 | I56: 0 | J56: 0 | K56: 0 | L56: 0
G57: a. Inversiones Financieras a Largo Plazo | H57: 0 | I57: 0 | J57: 2.844518635e+10 | K57: 2.998506311e+10 | L57: 2.832002312e+10
G58: b. Derechos a Recibir Efectivo o Equivalentes a LP | H58: 0 | I58: 0 | J58: 180010314.5 | K58: 180010314.5 | L58: 180010314.5
G59: c. Bienes Inmuebles, Infra. y Construcc. en Proceso | H59: 0 | I59: 0 | J59: 5.185327164e+10 | K59: 3.932100714e+10 | L59: 5.238167534e+10
G60: d. Bienes Muebles | H60: 0 | I60: 0 | J60: 4859071678 | K60: 4437570170 | L60: 4873819343
G61: e. Activos Intangibles | H61: 0 | I61: 0 | J61: 184795750.2 | K61: 176996568.8 | L61: 185528438.5
G62: f. Depreciación, Deterioro y Amort. Acum. de Bien | H62: 0 | I62: 0 | J62: -1788688827 | K62: -1159135562 | L62: -1888501648
G63: g. Activos Diferidos | H63: 0 | I63: 0 | J63: 32457644.67 | K63: 32457644.67 | L63: 32457644.67
G64: h. Estimación por Pérdida o Det. de Activos no Circulant | H64: 0 | I64: 0
G65: i. Otros Activos no Circulantes | H65: 0 | I65: 0
G66: IB. Total de Activos No Circulantes | H66: 0 | I66: 0 | J66: 8.376610455e+10 | K66: 7.297396939e+10 | L66: 8.408501255e+10
G67: I. Total del Activo | H67: 0 | I67: 0 | J67: 8.95445698e+10 | K67: 7.737032722e+10 | L67: 9.205320205e+10

Sheet Sheet1 (hidden)
G14: Table
H15: Saldo Actual (ORIGINAL) | I15: Saldo Anterior (ORIGINAL) | J15: Saldo Actual (NUEVO) | K15: Saldo Anterior (NUEVO) | L15: Saldo acumulado
G16: Pasivo | L16: 0
G17: Pasivo Circulante | L17: 0
G18: a. Cuentas por Pagar a Corto Plazo | H18: 0 | I18: 0 | J18: 3536635350 | K18: 4289743047 | L18: -3113968690
G19: a1) Servicios Personales por Pagar a Corto Plazo | H19: 0 | I19: 0 | J19: 1383703864 | K19: 1314081573 | L19: -1298424046
G20: a2) Proveedores por Pagar a Corto Plazo | H20: 0 | I20: 0 | J20: 521330037.3 | K20: 933595866.4 | L20: -423558873
G21: a3) Contratistas por Obras Públicas por Pagar a Corto Pl | H21: 0 | I21: 0 | J21: 601686404.9 | K21: 916836509.7 | L21: -82132689.27
G22: a4) Participaciones y Aportaciones por Pagar a Corto Pla | H22: 0 | I22: 0 | J22: 69824978.52 | K22: 70994319.85 | L22: -118337893.4
G23: a5) Transferencias Otorgadas por Pagar a Corto Plazo | H23: 0 | I23: 0 | J23: 749912808.5 | K23: 975442829 | L23: -1473142636
G24: a6) Intereses, Comisiones y Otros Gastos de la Deuda Púb | H24: 0 | I24: 0 | J24: 3538321.27 | K24: 3538321.27 | L24: -173216535.3
G25: a7) Retenciones y Contribuciones por Pagar a Corto Plazo | H25: 0 | I25: 0 | J25: 52618593.23 | K25: 3925567 | L25: 648739641.6
G26: a8) Devoluciones de la Ley de Ingresos por Pagar a Corto | H26: 0 | I26: 0 | J26: 917272.94 | K26: 591776.97 | L26: -918826.94
G27: a9) Otras Cuentas por Pagar a Corto Plazo | H27: 0 | I27: 0 | J27: 153103068.8 | K27: 70736283.25 | L27: -192976831.6
G28: b. Documentos por Pagar a Corto Plazo | H28: 0 | I28: 0 | J28: 2150000000 | K28: 233333340 | L28: -1612500000
G29: b1) Documentos Comerciales por Pagar a Corto Plazo | H29: 0 | I29: 0 | J29: 2150000000 | K29: 233333340 | L29: -1612500000
G30: b2) Documentos con Contratistas por Obras Públicas por P | H30: 0 | I30: 0
G31: b3) Otros Documentos por Pagar a Corto Plazo | H31: 0 | I31: 0
G32: c. Porción a Corto Plazo de la Deuda Pública | H32: 0 | I32: 0 | J32: 142293942.3 | K32: 127482353.5 | L32: -514100234.8
G33: c1) Porción a Corto Plazo de la Deuda Pública | H33: 0 | I33: 0 | J33: 142293942.3 | K33: 127482353.5 | L33: -514100234.8
G34: c2) Porción a Corto Plazo de Arrendamiento Financiero | H34: 0 | I34: 0
G35: d. Títulos y Valores a Corto Plazo | H35: 0 | I35: 0
G36: e. Pasivos Diferidos a Corto Plazo | H36: 0 | I36: 0
G37: e1) Ingresos Cobrados por Adelantado a Corto Plazo | H37: 0 | I37: 0
G38: e2) Intereses Cobrados por Adelantado a Corto Plazo | H38: 0 | I38: 0
G39: e3) Otros Pasivos Diferidos a Corto Plazo | H39: 0 | I39: 0
G40: f. Fondos y Bienes de Terceros en Garantía | H40: 0 | I40: 0 | J40: 224453608 | K40: 223340013.9 | L40: -225877337.5
G41: f1) Fondos en Garantía a Corto Plazo | H41: 0 | I41: 0 | J41: 15081524.58 | K41: 14829780.58 | L41: -15366278.08
G42: f2) Fondos en Administración a Corto Plazo | H42: 0 | I42: 0 | J42: 209372083.4 | K42: 208510233.3 | L42: -210511059.4
G43: f3) Fondos Contingentes a Corto Plazo | H43: 0 | I43: 0
G44: f4) Fondos de Fideicomisos, Mandatos y Contratos Análogo | H44: 0 | I44: 0
G45: f5) Otros Fondos de Terceros en Garantía y/o Administrac | H45: 0 | I45: 0
G46: f6) Valores y Bienes en Garantía a Corto Plazo | H46: 0 | I46: 0
G47: g. Provisiones a Corto Plazo | H47: 0 | I47: 0
G48: g1) Provisión para Demandas y Juicios a Corto Plazo | H48: 0 | I48: 0
G49: g2) Provisión para Contingencias a Corto Plazo | H49: 0 | I49: 0
G50: g3) Otras Provisiones a Corto Plazo | H50: 0 | I50: 0
G51: h. Otros Pasivos a Corto Plazo | H51: 0 | I51: 0 | J51: 2297840668 | K51: 2255719638 | L51: -2186964123
G52: h1) Ingresos por Clasificar | H52: 0 | I52: 0 | J52: 4618608.92 | K52: 4256314.38 | L52: -4870206.49
G53: h2) Recaudación por Participar | H53: 0 | I53: 0 | J53: 1605153344 | K53: 1712820321 | L53: -1473955998
G54: h3) Otros Pasivos Circulantes | H54: 0 | I54: 0 | J54: 688068715.8 | K54: 538643003.3 | L54: -708137918.6
G55: IIA. Total de Pasivos Circulantes | H55: 0 | I55: 0 | J55: 8351223568 | K55: 7129618393 | L55: -7653410385
G56: Pasivo No Circulante | L56: 0
G57: a. Cuentas por Pagar a Largo Plazo | H57: 0 | I57: 0 | J57: 0 | K57: 0 | L57: 0
G58: b. Documentos por Pagar a Largo Plazo | H58: 0 | I58: 0
G59: c. Deuda Pública a Largo Plazo | H59: 0 | I59: 0 | J59: 1.916731316e+10 | K59: 1.934115602e+10 | L59: -2.016657975e+10
G60: d. Pasivos Diferidos a Largo Plazo | H60: 0 | I60: 0
G61: e. Fondos y Bienes de Terceros en Garantía | H61: 0 | I61: 0 | K61: 0 | L61: 0
G62: f. Provisiones a Largo Plazo | H62: 0 | I62: 0
G63: IIB. Total de Pasivos No Circulantes | H63: 0 | I63: 0 | J63: 1.916731316e+10 | K63: 1.934115602e+10 | L63: -2.016657975e+10
G64: II. Total del Pasivo | H64: 0 | I64: 0 | J64: 2.751853672e+10 | K64: 2.647077441e+10 | L64: -2.781999013e+10
G65: Hacienda Pública/Patrimonio | L65: 0
G66: IIIA. Hacienda Pública/Patrimonio Contribuido | H66: 0 | I66: 0 | J66: 3.780279696e+10 | K66: 3.903483477e+10 | L66: -3.780279696e+10
G67: Aportaciones | H67: 0 | I67: 0 | J67: 3.775154589e+10 | K67: 3.899188728e+10 | L67: -3.775154589e+10
G68: Donaciones de Capital | H68: 0 | I68: 0 | J68: 42079552.02 | K68: 33775969 | L68: -42079552.02
G69: Actualización de la Hacienda Pública/Pa | H69: 0 | I69: 0 | J69: 9171517.96 | K69: 9171517.96 | L69: -9171517.96
G70: IIIB. Hacienda Pública/Patrimonio Generado | H70: 0 | I70: 0 | J70: 1.893204491e+10 | K70: 1.576920457e+10 | L70: -2.102783926e+10
G71: Resultados del Ejercicio (Ahorro/ Desahorro) | H71: 0 | I71: 0 | J71: 3166477309 | K71: 3015011895 | L71: -2100208887
G72: Resultados de Ejercicios Anteriores | H72: 0 | I72: 0 | J72: 1.57655676e+10 | K72: 1.275419267e+10 | L72: -1.892763038e+10
G73: Revalúos | H73: 0 | I73: 0 | J73: 2.636793778e+10 | K73: 1.740061147e+10 | L73: -2.636793778e+10
G74: Reservas | H74: 0 | I74: 0
G75: Rectificaciones de Resultados de Ejercicios Anteriores | H75: 0 | I75: 0 | J75: -2.107674656e+10 | K75: -2.1305098e+10 | L75: 2.096536208e+10
G76: IIIC. Exceso o Insuficiencia en la Actualización de la Hac | H76: 0 | I76: 0
G77: Resultado por Tenencia de Activos no Monetarios | H77: 0 | I77: 0
G78: Resultado por Tenencia de Activos no Mo | H78: 0 | I78: 0
G79: III. Total Hacienda Pública/Patrimonio | H79: 0 | I79: 0 | J79: 5.673484187e+10 | K79: 5.480403934e+10 | L79: -5.883063622e+10
G80: IV. Total del Pasivo y Hacienda Pública/Patrimonio | H80: 0 | I80: 0 | J80: 8.425337859e+10 | K80: 8.127481375e+10 | L80: -8.665062636e+10

Sheet Estado Situacion Financiera Det
A1: 2018 | B1: 1..12 | D1: Gob del Edo de Michoacán | F1: 16/10/2018 | G1: Selección vacía | H1: 12 | I1: Enero | J1: Diciembre | K1: 1 | L1: 2018-12-31 | M1: 31 | T1: 12 | U1: 2017 | V1: 1..12 | W1: 4to Trimestre 2018 | X1: 4to Trimestre 2017 | Y1: 12
V2: 1..12
B3: GOBIERNO DEL ESTADO DE MICHOACÁN DE OCAMPO | L3: H | N3: 012.2024
B4: Estado de Situación Financiera Detallado - LDF | L4: L | N4: 012.2023 | U4: Actual | V4: 12 | W4: 12 | X4: Diciembre | Y4: 1 | Z4: Enero
B5: =CONCATENATE("Al"," ",L23," ","de"," ",P7," ","del"," ",O11," ","y"," ","al"," ",L24," ","de"," ",P8," ","del"," ",O12) -> Al 31 de Diciembre del 2024 y al 31 de Diciembre del 2023 | N5: 12/05/2022 | U5: Anterior | V5: 12 | W5: 12 | X5: Diciembre | Y5: 2 | Z5: Febrero
Y6: 3 | Z6: Marzo
B7: =+"Elaborado el "&DAY(TODAY())&" de "&PROPER(TEXT(TODAY(),"MMMM"))&" del "&YEAR(TODAY()) -> Elaborado el 29 de Abril del 2025 | L7: T | N7: =MID(N3,2,2) -> 12 | O7: =VALUE(N7) -> 12 | P7: =VLOOKUP(O7,$S$8:$T$23,2,0) -> Diciembre | U7: =MID(N4,2,2) -> 12 | Y7: 4 | Z7: Abril
B8: (Pesos) | L8: L | N8: =MID(N4,2,2) -> 12 | O8: 12 | P8: =VLOOKUP(O8,$S$8:$T$23,2,0) -> Diciembre | S8: =VALUE(1) -> 1 | T8: Enero | U8: =MID(U4,2,2) -> ct | Y8: 5 | Z8: Mayo
B9: Concepto (c) | C9: =CONCATENATE(P7," ",N15) -> Diciembre 2024 | D9: =CONCATENATE(P8," ",N14) -> Diciembre 2023 | F9: Concepto (c) | G9: =CONCATENATE(P7," ",N15) -> Diciembre 2024 | H9: =CONCATENATE(P8," ",N14) -> Diciembre 2023 | L9: DIA CONSULTA | N9: =MID(N5,1,2) -> 12 | O9: 12 | S9: =VALUE(2) -> 2 | T9: Febrero | U9: =MID(U5,1,2) -> An | Y9: 6 | Z9: Junio
B10: ACTIVO | F10: PASIVO | L10: MES CONSULTA | N10: =MID(N5,4,2) -> 05 | O10: 5 | P10: =VLOOKUP(O10,S8:T19,2,0) -> Mayo | S10: =VALUE(3) -> 3 | T10: Marzo | U10: =MID(U5,4,2) -> er | Y10: 7 | Z10: Julio
B11: Activo Circulante | F11: Pasivo Circulante | L11: AÑO CONSULTA | N11: =MID(N3,5,4) -> 2024 | O11: 2024 | S11: =VALUE(4) -> 4 | T11: Abril | U11: =MID(U5,7,4) -> or | Y11: 8 | Z11: Agosto
B12: a. Efectivo y Equivalentes (a=a1+a2+a3+a4+a5+a6+a7) | C12: =SUM(C13:C19) -> 2487939016 | D12: =SUM(D13:D19) -> 2697592194 | F12: a. Cuentas por Pagar a Corto Plazo (a=a1+a2+a3+a4+a5+a6+a7+a8+a9) | G12: =SUM(G13:G21) -> 3536635350 | H12: =SUM(H13:H21) -> 4289743047 | N12: =MID(N4,5,4) -> 2023 | O12: 2023 | S12: =VALUE(5) -> 5 | T12: Mayo | Y12: 9 | Z12: Septiembre
B13: a1) Efectivo | C13: =IF(Table!J19="",0,Table!J19) -> 702555011.8 | D13: =IF(Table!K19="",0,Table!K19) -> 654951531 | F13: a1) Servicios Personales por Pagar a Corto Plazo | G13: =IF(Sheet1!J19="",0,Sheet1!J19) -> 1383703864 | H13: =IF(Sheet1!K19="",0,Sheet1!K19) -> 1314081573 | S13: =VALUE(6) -> 6 | T13: Junio | Y13: 10 | Z13: Octubre
B14: a2) Bancos/Tesorería | C14: =IF(Table!J20="",0,Table!J20) -> 380344488.2 | D14: =IF(Table!K20="",0,Table!K20) -> 53698553.21 | F14: a2) Proveedores por Pagar a Corto Plazo | G14: =IF(Sheet1!J20="",0,Sheet1!J20) -> 521330037.3 | H14: =IF(Sheet1!K20="",0,Sheet1!K20) -> 933595866.4 | L14: AÑO LOW | N14: =MID(N4,5,4) -> 2023 | S14: =VALUE(7) -> 7 | T14: Julio | U14: =MID(U4,5,4) -> al | Y14: 11 | Z14: Noviembre
B15: a3) Bancos/Dependencias y Otros | C15: =IF(Table!J21="",0,Table!J21) -> 0 | D15: =IF(Table!K21="",0,Table!K21) -> 0 | F15: a3) Contratistas por Obras Públicas por Pagar a Corto Plazo | G15: =IF(Sheet1!J21="",0,Sheet1!J21) -> 601686404.9 | H15: =IF(Sheet1!K21="",0,Sheet1!K21) -> 916836509.7 | L15: AÑO HIGH | N15: =MID(N3,5,4) -> 2024 | S15: =VALUE(8) -> 8 | T15: Agosto | U15: =MID(U3,5,4) ->  | Y15: 12 | Z15: Diciembre
B16: a4) Inversiones Temporales (Hasta 3 meses) | C16: =IF(Table!J22="",0,Table!J22) -> 71220659.87 | D16: =IF(Table!K22="",0,Table!K22) -> 356184486 | F16: a4) Participaciones y Aportaciones por Pagar a Corto Plazo | G16: =IF(Sheet1!J22="",0,Sheet1!J22) -> 69824978.52 | H16: =IF(Sheet1!K22="",0,Sheet1!K22) -> 70994319.85 | S16: =VALUE(9) -> 9 | T16: Septiembre
B17: a5) Fondos con Afectación Específica | C17: =IF(Table!J23="",0,Table!J23) -> 1333789850 | D17: =IF(Table!K23="",0,Table!K23) -> 1632728618 | F17: a5) Transferencias Otorgadas por Pagar a Corto Plazo | G17: =IF(Sheet1!J23="",0,Sheet1!J23) -> 749912808.5 | H17: =IF(Sheet1!K23="",0,Sheet1!K23) -> 975442829 | L17: =CONCATENATE("01/",IF(OR(N7="13",N7="14",N7="15",N7="16"),12,N7),"/",N15) -> 01/12/2024 | N17: =CONCATENATE("01/",P7,"/",P15) -> 01/Diciembre/ | S17: =VALUE(10) -> 10 | T17: Octubre
B18: a6) Depósitos de Fondos de Terceros en Garantía y/o Administración | C18: =IF(Table!J24="",0,Table!J24) -> 0 | D18: =IF(Table!K24="",0,Table!K24) -> 0 | F18: a6) Intereses, Comisiones y Otros Gastos de la Deuda Pública por Pagar a Corto Plazo | G18: =IF(Sheet1!J24="",0,Sheet1!J24) -> 3538321.27 | H18: =IF(Sheet1!K24="",0,Sheet1!K24) -> 3538321.27 | L18: =EOMONTH(L17,0) -> 2024-12-31 | N18: =EOMONTH(N17,0) ->  | S18: =VALUE(11) -> 11 | T18: Noviembre
B19: a7) Otros Efectivos y Equivalentes | C19: =IF(Table!J25="",0,Table!J25) -> 29006 | D19: =IF(Table!K25="",0,Table!K25) -> 29006 | F19: a7) Retenciones y Contribuciones por Pagar a Corto Plazo | G19: =IF(Sheet1!J25="",0,Sheet1!J25) -> 52618593.23 | H19: =IF(Sheet1!K25="",0,Sheet1!K25) -> 3925567 | S19: =VALUE(12) -> 12 | T19: Diciembre
B20: b. Derechos a Recibir Efectivo o Equivalentes (b=b1+b2+b3+b4+b5+b6+b7) | C20: =SUM(C21:C27) -> 2993813274 | D20: =SUM(D21:D27) -> 1332014664 | F20: a8) Devoluciones de la Ley de Ingresos por Pagar a Corto Plazo | G20: =IF(Sheet1!J26="",0,Sheet1!J26) -> 917272.94 | H20: =IF(Sheet1!K26="",0,Sheet1!K26) -> 591776.97 | L20: =CONCATENATE("01/",IF(OR(N8="13",N8="14",N8="15",N8="16"),"12",N8),"/",N14) -> 01/12/2023 | S20: 13 | T20: Diciembre
B21: b1) Inversiones Financieras de Corto Plazo | C21: =IF(Table!J27="",0,Table!J27) -> 0 | D21: =IF(Table!K27="",0,Table!K27) -> 0 | F21: a9) Otras Cuentas por Pagar a Corto Plazo | G21: =IF(Sheet1!J27="",0,Sheet1!J27) -> 153103068.8 | H21: =IF(Sheet1!K27="",0,Sheet1!K27) -> 70736283.25 | L21: =EOMONTH(L20,0) -> 2023-12-31 | S21: 14 | T21: Diciembre
B22: b2) Cuentas por Cobrar a Corto Plazo | C22: =IF(Table!J28="",0,Table!J28) -> 39501.97 | D22: =IF(Table!K28="",0,Table!K28) -> 39501.97 | F22: b. Documentos por Pagar a Corto Plazo (b=b1+b2+b3) | G22: =SUM(G23:G25) -> 2150000000 | H22: =SUM(H23:H25) -> 233333340 | S22: 15 | T22: Diciembre
B23: b3) Deudores Diversos por Cobrar a Corto Plazo | C23: =IF(Table!J29="",0,Table!J29) -> 2234374845 | D23: =IF(Table!K29="",0,Table!K29) -> 528200041.8 | F23: b1) Documentos Comerciales por Pagar a Corto Plazo | G23: =IF(Sheet1!J29="",0,Sheet1!J29) -> 2150000000 | H23: =IF(Sheet1!K29="",0,Sheet1!K29) -> 233333340 | L23: =TEXT(L18,"dd") -> 31 | N23: =TEXT(N18,"dd") ->  | S23: 16 | T23: Diciembre
B24: b4) Ingresos por Recuperar a Corto Plazo | C24: =IF(Table!J30="",0,Table!J30) -> 7313.43 | D24: =IF(Table!K30="",0,Table!K30) -> 70695.61 | F24: b2) Documentos con Contratistas por Obras Públicas por Pagar a Corto Plazo | G24: =IF(Sheet1!J30="",0,Sheet1!J30) -> 0 | H24: =IF(Sheet1!K30="",0,Sheet1!K30) -> 0 | L24: =TEXT(L21,"dd") -> 31
B25: b5) Deudores por Anticipos de la Tesorería a Corto Plazo | C25: =IF(Table!J31="",0,Table!J31) -> 47675365.65 | D25: =IF(Table!K31="",0,Table!K31) -> 53103036.47 | F25: b3) Otros Documentos por Pagar a Corto Plazo | G25: =IF(Sheet1!J31="",0,Sheet1!J31) -> 0 | H25: =IF(Sheet1!K31="",0,Sheet1!K31) -> 0
B26: b6) Préstamos Otorgados a Corto Plazo | C26: =IF(Table!J32="",0,Table!J32) -> 32489913.88 | D26: =IF(Table!K32="",0,Table!K32) -> 28935986.23 | F26: c. Porción a Corto Plazo de la Deuda Pública a Largo Plazo (c=c1+c2) | G26: =SUM(G27:G28) -> 142293942.3 | H26: =SUM(H27:H28) -> 127482353.5 | L26: =CONCATENATE("Al"," ",L23," ","de"," ",P7," ","del"," ",O11," ","y"," ","al"," ",L24," ","de"," ",P8," ","del"," ",O12) -> Al 31 de Diciembre del 2024 y al 31 de Diciembre del 2023
B27: b7) Otros Derechos a Recibir Efectivo o Equivalentes a Corto Plazo | C27: =IF(Table!J33="",0,Table!J33) -> 679226334.9 | D27: =IF(Table!K33="",0,Table!K33) -> 721665401.8 | F27: c1) Porción a Corto Plazo de la Deuda Pública | G27: =IF(Sheet1!J33="",0,Sheet1!J33) -> 142293942.3 | H27: =IF(Sheet1!K33="",0,Sheet1!K33) -> 127482353.5 | L27: =CONCATENATE("Al"," ",L23," ","de"," ",P8," ","del"," ",O12," ","y"," ","al"," ",L23," ","de"," ",P7," ","del"," ",O11) -> Al 31 de Diciembre del 2023 y al 31 de Diciembre del 2024
B28: c. Derechos a Recibir Bienes o Servicios (c=c1+c2+c3+c4+c5) | C28: =SUM(C29:C33) -> 296226142.9 | D28: =SUM(D29:D33) -> 366264146.2 | F28: c2) Porción a Corto Plazo de Arrendamiento Financiero | G28: =IF(Sheet1!J34="",0,Sheet1!J34) -> 0 | H28: =IF(Sheet1!K34="",0,Sheet1!K34) -> 0
B29: c1) Anticipo a Proveedores por Adquisición de Bienes y Prestación de Servicios a Corto Plazo | C29: =IF(Table!J35="",0,Table!J35) -> 0 | D29: =IF(Table!K35="",0,Table!K35) -> 0 | F29: d. Títulos y Valores a Corto Plazo | G29: =IF(Sheet1!J35="",0,Sheet1!J35) -> 0 | H29: =IF(Sheet1!K35="",0,Sheet1!K35) -> 0
B30: c2) Anticipo a Proveedores por Adquisición de Bienes Inmuebles y Muebles a Corto Plazo | C30: =IF(Table!J36="",0,Table!J36) -> 0 | D30: =IF(Table!K36="",0,Table!K36) -> 0 | F30: e. Pasivos Diferidos a Corto Plazo (e=e1+e2+e3) | G30: =IF(Sheet1!J36="",0,Sheet1!J36) -> 0 | H30: =IF(Sheet1!K36="",0,Sheet1!K36) -> 0
B31: c3) Anticipo a Proveedores por Adquisición de Bienes Intangibles a Corto Plazo | C31: =IF(Table!J37="",0,Table!J37) -> 0 | D31: =IF(Table!K37="",0,Table!K37) -> 0 | F31: e1) Ingresos Cobrados por Adelantado a Corto Plazo | G31: =IF(Sheet1!J37="",0,Sheet1!J37) -> 0 | H31: =IF(Sheet1!K37="",0,Sheet1!K37) -> 0
B32: c4) Anticipo a Contratistas por Obras Públicas a Corto Plazo | C32: =IF(Table!J38="",0,Table!J38) -> 296226142.9 | D32: =IF(Table!K38="",0,Table!K38) -> 366264146.2 | F32: e2) Intereses Cobrados por Adelantado a Corto Plazo | G32: =IF(Sheet1!J38="",0,Sheet1!J38) -> 0 | H32: =IF(Sheet1!K38="",0,Sheet1!K38) -> 0
B33: c5) Otros Derechos a Recibir Bienes o Servicios a Corto Plazo | C33: =IF(Table!J39="",0,Table!J39) -> 0 | D33: =IF(Table!K39="",0,Table!K39) -> 0 | F33: e3) Otros Pasivos Diferidos a Corto Plazo | G33: =IF(Sheet1!J39="",0,Sheet1!J39) -> 0 | H33: =IF(Sheet1!K39="",0,Sheet1!K39) -> 0
B34: d. Inventarios (d=d1+d2+d3+d4+d5) | C34: =SUM(C35:C39) -> 0 | D34: =SUM(D35:D39) -> 0 | F34: f. Fondos y Bienes de Terceros en Garantía y/o Administración a Corto Plazo (f=f1+f2+f3+f4+f5+f6) | G34: =IF(Sheet1!J40="",0,Sheet1!J40) -> 224453608 | H34: =IF(Sheet1!K40="",0,Sheet1!K40) -> 223340013.9
B35: d1) Inventario de Mercancías para Venta | C35: =IF(Table!J41="",0,Table!J41) -> 0 | D35: =IF(Table!K41="",0,Table!K41) -> 0 | F35: f1) Fondos en Garantía a Corto Plazo | G35: =IF(Sheet1!J41="",0,Sheet1!J41) -> 15081524.58 | H35: =IF(Sheet1!K41="",0,Sheet1!K41) -> 14829780.58
B36: d2) Inventario de Mercancías Terminadas | C36: =IF(Table!J42="",0,Table!J42) -> 0 | D36: =IF(Table!K42="",0,Table!K42) -> 0 | F36: f2) Fondos en Administración a Corto Plazo | G36: =IF(Sheet1!J42="",0,Sheet1!J42) -> 209372083.4 | H36: =IF(Sheet1!K42="",0,Sheet1!K42) -> 208510233.3
B37: d3) Inventario de Mercancías en Proceso de Elaboración | C37: =IF(Table!J43="",0,Table!J43) -> 0 | D37: =IF(Table!K43="",0,Table!K43) -> 0 | F37: f3) Fondos Contingentes a Corto Plazo | G37: =IF(Sheet1!J43="",0,Sheet1!J43) -> 0 | H37: =IF(Sheet1!K43="",0,Sheet1!K43) -> 0
B38: d4) Inventario de Materias Primas, Materiales y Suministros para Producción | C38: =IF(Table!J44="",0,Table!J44) -> 0 | D38: =IF(Table!K44="",0,Table!K44) -> 0 | F38: f4) Fondos de Fideicomisos, Mandatos y Contratos Análogos a Corto Plazo | G38: =IF(Sheet1!J44="",0,Sheet1!J44) -> 0 | H38: =IF(Sheet1!K44="",0,Sheet1!K44) -> 0
B39: d5) Bienes en Tránsito | C39: =IF(Table!J45="",0,Table!J45) -> 0 | D39: =IF(Table!K45="",0,Table!K45) -> 0 | F39: f5) Otros Fondos de Terceros en Garantía y/o Administración a Corto Plazo | G39: =IF(Sheet1!J45="",0,Sheet1!J45) -> 0 | H39: =IF(Sheet1!K45="",0,Sheet1!K45) -> 0
B40: e. Almacenes | C40: =IF(Table!J46="",0,Table!J46) -> 486820.21 | D40: =IF(Table!K46="",0,Table!K46) -> 486820.21 | F40: f6) Valores y Bienes en Garantía a Corto Plazo | G40: =IF(Sheet1!J46="",0,Sheet1!J46) -> 0 | H40: =IF(Sheet1!K46="",0,Sheet1!K46) -> 0
B41: f. Estimación por Pérdida o Deterioro de Activos Circulantes (f=f1+f2) | C41: =SUM(C42:C43) -> 0 | D41: =SUM(D42:D43) -> 0 | F41: g. Provisiones a Corto Plazo (g=g1+g2+g3) | G41: =IF(Sheet1!J47="",0,Sheet1!J47) -> 0 | H41: =IF(Sheet1!K47="",0,Sheet1!K47) -> 0
B42: f1) Estimaciones para Cuentas Incobrables por Derechos a Recibir Efectivo o Equivalentes | C42: =IF(Table!J48="",0,Table!J48) -> 0 | D42: =IF(Table!K48="",0,Table!K48) -> 0 | F42: g1) Provisión para Demandas y Juicios a Corto Plazo | G42: =IF(Sheet1!J48="",0,Sheet1!J48) -> 0 | H42: =IF(Sheet1!K48="",0,Sheet1!K48) -> 0
B43: f2) Estimación por Deterioro de Inventarios | C43: =IF(Table!J49="",0,Table!J49) -> 0 | D43: =IF(Table!K49="",0,Table!K49) -> 0 | F43: g2) Provisión para Contingencias a Corto Plazo | G43: =IF(Sheet1!J49="",0,Sheet1!J49) -> 0 | H43: =IF(Sheet1!K49="",0,Sheet1!K49) -> 0
B44: g. Otros Activos Circulantes (g=g1+g2+g3+g4) | C44: =SUM(C45:C48) -> 0 | D44: =SUM(D45:D48) -> 0 | F44: g3) Otras Provisiones a Corto Plazo | G44: =IF(Sheet1!J50="",0,Sheet1!J50) -> 0 | H44: =IF(Sheet1!K50="",0,Sheet1!K50) -> 0
B45: g1) Valores en Garantía | C45: =IF(Table!J51="",0,Table!J51) -> 0 | D45: =IF(Table!K51="",0,Table!K51) -> 0 | F45: h. Otros Pasivos a Corto Plazo (h=h1+h2+h3) | G45: =IF(Sheet1!J51="",0,Sheet1!J51) -> 2297840668 | H45: =IF(Sheet1!K51="",0,Sheet1!K51) -> 2255719638
B46: g2) Bienes en Garantía (excluye depósitos de fondos) | C46: =IF(Table!J52="",0,Table!J52) -> 0 | D46: =IF(Table!K52="",0,Table!K52) -> 0 | F46: h1) Ingresos por Clasificar | G46: =IF(Sheet1!J52="",0,Sheet1!J52) -> 4618608.92 | H46: =IF(Sheet1!K52="",0,Sheet1!K52) -> 4256314.38
B47: g3) Bienes Derivados de Embargos, Decomisos, Aseguramientos y Dación en Pago | C47: =IF(Table!J53="",0,Table!J53) -> 0 | D47: =IF(Table!K53="",0,Table!K53) -> 0 | F47: h2) Recaudación por Participar | G47: =IF(Sheet1!J53="",0,Sheet1!J53) -> 1605153344 | H47: =IF(Sheet1!K53="",0,Sheet1!K53) -> 1712820321
B48: g4) Adquisición con Fondos de Terceros | C48: =IF(Table!J54="",0,Table!J54) -> 0 | D48: =IF(Table!K54="",0,Table!K54) -> 0 | F48: h3) Otros Pasivos Circulantes | G48: =IF(Sheet1!J54="",0,Sheet1!J54) -> 688068715.8 | H48: =IF(Sheet1!K54="",0,Sheet1!K54) -> 538643003.3
B50: IA. Total de Activos Circulantes (IA = a + b + c + d + e + f + g) | C50: =SUM(C12+C20+C28+C34+C40+C41+C44) -> 5778465254 | D50: =SUM(D12+D20+D28+D34+D40+D41+D44) -> 4396357825 | F50: IIA. Total de Pasivos Circulantes (IIA = a + b + c + d + e + f + g + h) | G50: =SUM(G12+G22+G26+G29+G30+G34+G41+G45) -> 8351223568 | H50: =SUM(H12+H22+H26+H29+H30+H34+H41+H45) -> 7129618393
B52: Activo No Circulante | F52: Pasivo No Circulante
B53: a. Inversiones Financieras a Largo Plazo | C53: =IF(Table!J57="",0,Table!J57) -> 2.844518635e+10 | D53: =IF(Table!K57="",0,Table!K57) -> 2.998506311e+10 | F53: a. Cuentas por Pagar a Largo Plazo | G53: =IF(Sheet1!J57="",0,Sheet1!J57) -> 0 | H53: =IF(Sheet1!K57="",0,Sheet1!K57) -> 0
B54: b. Derechos a Recibir Efectivo o Equivalentes a Largo Plazo | C54: =IF(Table!J58="",0,Table!J58) -> 180010314.5 | D54: =IF(Table!K58="",0,Table!K58) -> 180010314.5 | F54: b. Documentos por Pagar a Largo Plazo | G54: =IF(Sheet1!J58="",0,Sheet1!J58) -> 0 | H54: =IF(Sheet1!K58="",0,Sheet1!K58) -> 0
B55: c. Bienes Inmuebles, Infraestructura y Construcciones en Proceso | C55: =IF(Table!J59="",0,Table!J59) -> 5.185327164e+10 | D55: =IF(Table!K59="",0,Table!K59) -> 3.932100714e+10 | F55: c. Deuda Pública a Largo Plazo | G55: =IF(Sheet1!J59="",0,Sheet1!J59) -> 1.916731316e+10 | H55: =IF(Sheet1!K59="",0,Sheet1!K59) -> 1.934115602e+10
B56: d. Bienes Muebles | C56: =IF(Table!J60="",0,Table!J60) -> 4859071678 | D56: =IF(Table!K60="",0,Table!K60) -> 4437570170 | F56: d. Pasivos Diferidos a Largo Plazo | G56: =IF(Sheet1!J60="",0,Sheet1!J60) -> 0 | H56: =IF(Sheet1!K60="",0,Sheet1!K60) -> 0
B57: e. Activos Intangibles | C57: =IF(Table!J61="",0,Table!J61) -> 184795750.2 | D57: =IF(Table!K61="",0,Table!K61) -> 176996568.8 | F57: e. Fondos y Bienes de Terceros en Garantía y/o en Administración a Largo Plazo | G57: =IF(Sheet1!J61="",0,Sheet1!J61) -> 0 | H57: =IF(Sheet1!K61="",0,Sheet1!K61) -> 0
B58: f. Depreciación, Deterioro y Amortización Acumulada de Bienes | C58: =IF(Table!J62="",0,Table!J62) -> -1788688827 | D58: =IF(Table!K62="",0,Table!K62) -> -1159135562 | F58: f. Provisiones a Largo Plazo | G58: =IF(Sheet1!J62="",0,Sheet1!J62) -> 0 | H58: =IF(Sheet1!K62="",0,Sheet1!K62) -> 0
B59: g. Activos Diferidos | C59: =IF(Table!J63="",0,Table!J63) -> 32457644.67 | D59: =IF(Table!K63="",0,Table!K63) -> 32457644.67
B60: h. Estimación por Pérdida o Deterioro de Activos no Circulantes | C60: =IF(Table!J64="",0,Table!J64) -> 0 | D60: =IF(Table!K64="",0,Table!K64) -> 0 | F60: IIB. Total de Pasivos No Circulantes (IIB = a + b + c + d + e + f) | G60: =SUM(G53:G58) -> 1.916731316e+10 | H60: =SUM(H53:H58) -> 1.934115602e+10
B61: i. Otros Activos no Circulantes | C61: =IF(Table!J65="",0,Table!J65) -> 0 | D61: =IF(Table!K65="",0,Table!K65) -> 0
F62: II. Total del Pasivo (II = IIA + IIB) | G62: =SUM(G50+G60) -> 2.751853672e+10 | H62: =SUM(H50+H60) -> 2.647077441e+10
B63: IB. Total de Activos No Circulantes (IB = a + b + c + d + e + f + g + h + i) | C63: =SUM(C53:C61) -> 8.376610455e+10 | D63: =SUM(D53:D61) -> 7.297396939e+10
F64: HACIENDA PÚBLICA/PATRIMONIO
B65: I. Total del Activo (I = IA + IB) | C65: =SUM(C63+C50) -> 8.95445698e+10 | D65: =SUM(D63+D50) -> 7.737032722e+10
F66: IIIA. Hacienda Pública/Patrimonio Contribuido (IIIA = a + b + c) | G66: =SUM(G67:G69) -> 3.780279696e+10 | H66: =SUM(H67:H69) -> 3.903483477e+10
F67: a. Aportaciones | G67: =IF(Sheet1!J67="",0,Sheet1!J67) -> 3.775154589e+10 | H67: =IF(Sheet1!K67="",0,Sheet1!K67) -> 3.899188728e+10
F68: b. Donaciones de Capital | G68: =IF(Sheet1!J68="",0,Sheet1!J68) -> 42079552.02 | H68: =IF(Sheet1!K68="",0,Sheet1!K68) -> 33775969
F69: c. Actualización de la Hacienda Pública/Patrimonio | G69: =IF(Sheet1!J69="",0,Sheet1!J69) -> 9171517.96 | H69: =IF(Sheet1!K69="",0,Sheet1!K69) -> 9171517.96
F71: IIIB. Hacienda Pública/Patrimonio Generado (IIIB = a + b + c + d + e) | G71: =SUM(G72:G76) -> 24223236122 | H71: =SUM(H72:H76) -> 1.186471803e+10
F72: a. Resultados del Ejercicio (Ahorro/ Desahorro) | G72: =IF(Sheet1!J71="",0,Sheet1!J71) -> 3166477309 | H72: =IF(Sheet1!K71="",0,Sheet1!K71) -> 3015011895
F73: b. Resultados de Ejercicios Anteriores | G73: =IF(Sheet1!J72="",0,Sheet1!J72) -> 1.57655676e+10 | H73: =IF(Sheet1!K72="",0,Sheet1!K72) -> 1.275419267e+10
F74: c. Revalúos | G74: =IF(Sheet1!J73="",0,Sheet1!J73) -> 2.636793778e+10 | H74: =IF(Sheet1!K73="",0,Sheet1!K73) -> 1.740061147e+10
F75: d. Reservas | G75: =IF(Sheet1!J74="",0,Sheet1!J74) -> 0 | H75: =IF(Sheet1!K74="",0,Sheet1!K74) -> 0
F76: e. Rectificaciones de Resultados de Ejercicios Anteriores | G76: =IF(Sheet1!J75="",0,Sheet1!J75) -> -2.107674656e+10 | H76: =IF(Sheet1!K75="",0,Sheet1!K75) -> -2.1305098e+10
F78: IIIC. Exceso o Insuficiencia en la Actualización de la Hacienda Pública/Patrimonio (IIIC=a+b) | G78: =SUM(G79:G80) -> 0 | H78: =SUM(H79:H80) -> 0
F79: a. Resultado por Posición Monetaria | G79: =IF(Sheet1!J77="",0,Sheet1!J78) -> 0 | H79: =IF(Sheet1!K77="",0,Sheet1!K78) -> 0
F80: b. Resultado por Tenencia de Activos no Monetarios | G80: =IF(Sheet1!J78="",0,Sheet1!J79) -> 0 | H80: =IF(Sheet1!K78="",0,Sheet1!K79) -> 0
F82: III. Total Hacienda Pública/Patrimonio (III = IIIA + IIIB + IIIC) | G82: =SUM(G78+G71+G66) -> 6.202603308e+10 | H82: =SUM(H78+H71+H66) -> 5.08995528e+10
F84: IV. Total del Pasivo y Hacienda Pública/Patrimonio (IV = II + III) | G84: =G62+G82 -> 8.95445698e+10 | H84: =H62+H82 -> 7.737032722e+10

Sheet Graph (hidden)
H1: FEP8Qry3
H2: Autor | I2: ADVJYNOQUIO | K2: Actualidad datos (fecha) | L2: 10:26:27
G5: Information
G6: Autor | H6: ADVJYNOQUIO | J6: Últ.actual.pantalla | K6: 29/04/2025 12:00:06
G7: Usuario actual | H7: GRPSMCABALLE | J7: Fe.clave | K7: 29/04/2025
G8: Modificado por | H8: ADVIVIEYRA | J8: Hora de modificación | K8: 07/05/2020 10:37:04
G9: InfoSitio | H9: ZVRL_MP02 | J9: Actualidad de datos | K9: 12/05/2022 10:26:27
G10: Nombre técnico query | H10: ZFI_VRL_MP02_Q008A | J10: Actualidad datos (fecha) | K10: 12/05/2022
G11: Descripción query | H11: Estado de Situacion Financiera Det A | J11: Actualidad datos (fecha) | K11: 10:26:27
C14: Filter
C15: Área funcional
C16: Centro de beneficio
C17: Centro de coste
C18: Cuenta de mayor
C19: Ejercicio/Período
C20: Ejercicio
C21: Estruct.
C22: InfoSitio
C23: Período contable
C24: Ratios
